[Event "*** Titled Tuesday Blitz"]
[Site "Chess.com"]
[Date "2020.11.24"]
[Round "8"]
[White "ambaixador"]
[Black "Quiet_Desperation"]
[Result "0-1"]
[WhiteElo "2422"]
[BlackElo "1714"]
[TimeControl "180+1"]
[EndTime "11:46:28 PST"]
[Termination "Quiet_Desperation won on time"]

1. d4 {[%clk 0:03:00.9]} 1... d5 {[%clk 0:02:57.4]} 2. Nf3 {[%clk 0:03:01.2]}
2... c6 {[%clk 0:02:57.6]} 3. c4 {[%clk 0:03:01.5]} 3... Nf6 {[%clk 0:02:57.8]}
4. e3 {[%clk 0:03:01.7]} 4... dxc4 {[%clk 0:02:56.5]} 5. Bxc4 {[%clk 0:03:01.6]}
5... Nbd7 {[%clk 0:02:39.2]} 6. O-O {[%clk 0:02:48]} 6... Nb6 {[%clk 0:02:38.8]}
7. Bb3 {[%clk 0:02:43.1]} 7... Bf5 {[%clk 0:02:38.2]} 8. Nc3 {[%clk 0:02:30.7]}
8... e6 {[%clk 0:02:30.1]} 9. Qe2 {[%clk 0:02:14.5]} 9... Be7 {[%clk 0:02:19.5]}
10. e4 {[%clk 0:02:13.5]} 10... Bg4 {[%clk 0:02:18.3]} 11. Be3 {[%clk
0:02:11.7]} 11... O-O {[%clk 0:02:12.7]} 12. h3 {[%clk 0:02:10.1]} 12... Bh5
{[%clk 0:02:11]} 13. Rfe1 {[%clk 0:02:04]} 13... Nfd7 {[%clk 0:01:57.5]} 14. g4
{[%clk 0:01:55.6]} 14... Bg6 {[%clk 0:01:56.2]} 15. Ne5 {[%clk 0:01:55.8]} 15...
Nxe5 {[%clk 0:01:55.9]} 16. dxe5 {[%clk 0:01:56.7]} 16... Kh8 {[%clk 0:01:48.2]}
17. f4 {[%clk 0:01:56.1]} 17... f5 {[%clk 0:01:47.8]} 18. Bxe6 {[%clk 0:01:29]}
18... fxe4 {[%clk 0:01:32.2]} 19. f5 {[%clk 0:01:25.7]} 19... Bf7 {[%clk
0:01:17.8]} 20. Bxf7 {[%clk 0:01:24.5]} 20... Rxf7 {[%clk 0:01:17.8]} 21. Rad1
{[%clk 0:01:23.7]} 21... Qe8 {[%clk 0:01:10.6]} 22. Nxe4 {[%clk 0:01:21.9]}
22... Nd5 {[%clk 0:01:09.4]} 23. e6 {[%clk 0:01:12]} 23... Rf8 {[%clk
0:01:04.7]} 24. Bg5 {[%clk 0:01:03.7]} 24... h6 {[%clk 0:00:56.8]} 25. Bxe7
{[%clk 0:01:02.3]} 25... Qxe7 {[%clk 0:00:56.9]} 26. Qf2 {[%clk 0:01:02.4]}
26... Rad8 {[%clk 0:00:48.7]} 27. Nc3 {[%clk 0:01:02.2]} 27... Nb4 {[%clk
0:00:45.6]} 28. Qf3 {[%clk 0:00:20.5]} 28... Nc2 {[%clk 0:00:38.7]} 29. Rxd8
{[%clk 0:00:17.1]} 29... Rxd8 {[%clk 0:00:38.2]} 30. Rd1 {[%clk 0:00:17.3]}
30... Nd4 {[%clk 0:00:31]} 31. Qe3 {[%clk 0:00:12.2]} 31... c5 {[%clk
0:00:29.1]} 32. Kf2 {[%clk 0:00:10.4]} 32... Qd6 {[%clk 0:00:28]} 33. Qg3 {[%clk
0:00:08.3]} 33... Qb6 {[%clk 0:00:25.1]} 34. b3 {[%clk 0:00:05.3]} 34... Qc6
{[%clk 0:00:10.3]} 35. Ne2 {[%clk 0:00:04.5]} 35... Re8 {[%clk 0:00:06.5]} 36.
Nxd4 {[%clk 0:00:03.9]} 36... cxd4 {[%clk 0:00:07]} 37. Qf3 {[%clk 0:00:04.1]}
37... Qc5 {[%clk 0:00:06.2]} 38. Rd3 {[%clk 0:00:03.7]} 38... Rc8 {[%clk
0:00:05.5]} 39. Qe2 {[%clk 0:00:03.8]} 39... Qd6 {[%clk 0:00:04.2]} 40. Qf3
{[%clk 0:00:03.1]} 40... Rc2+ {[%clk 0:00:02.4]} 41. Ke1 {[%clk 0:00:03.2]}
41... Qh2 {[%clk 0:00:01.2]} 0-1

[Event "*** Titled Tuesday Blitz"]
[Site "Chess.com"]
[Date "2020.11.24"]
[Round "8"]
[White "zocpoc71"]
[Black "Ladislav1969"]
[Result "1/2-1/2"]
[WhiteElo "2489"]
[BlackElo "2345"]
[TimeControl "180+1"]
[EndTime "11:46:28 PST"]
[Termination "Game drawn by repetition"]

1. e4 {[%clk 0:02:51.8]} 1... c5 {[%clk 0:02:59.9]} 2. Nf3 {[%clk 0:02:51.8]}
2... e6 {[%clk 0:03:00.8]} 3. d4 {[%clk 0:02:50.3]} 3... cxd4 {[%clk 0:03:01.7]}
4. Nxd4 {[%clk 0:02:50.5]} 4... a6 {[%clk 0:03:02.4]} 5. Bd3 {[%clk 0:02:49.8]}
5... Nc6 {[%clk 0:03:01.8]} 6. Nxc6 {[%clk 0:02:46.7]} 6... dxc6 {[%clk
0:03:02.7]} 7. O-O {[%clk 0:02:46.7]} 7... e5 {[%clk 0:03:03.1]} 8. Be3 {[%clk
0:02:38.7]} 8... Nf6 {[%clk 0:03:02.6]} 9. h3 {[%clk 0:02:35.1]} 9... b5 {[%clk
0:02:49.4]} 10. a4 {[%clk 0:02:34.1]} 10... Be6 {[%clk 0:02:45.9]} 11. Qe2
{[%clk 0:02:27.8]} 11... Be7 {[%clk 0:02:40.1]} 12. Rd1 {[%clk 0:02:21.1]} 12...
Qc8 {[%clk 0:02:30.7]} 13. Nd2 {[%clk 0:02:12.2]} 13... O-O {[%clk 0:02:27.3]}
14. Nf3 {[%clk 0:02:12]} 14... Nd7 {[%clk 0:02:20.4]} 15. c3 {[%clk 0:01:44.1]}
15... f6 {[%clk 0:02:14.6]} 16. b4 {[%clk 0:01:34.7]} 16... Rd8 {[%clk
0:01:57.2]} 17. Bb1 {[%clk 0:01:28.7]} 17... Nf8 {[%clk 0:01:41.4]} 18. Ba2
{[%clk 0:01:25.6]} 18... Kf7 {[%clk 0:01:26.7]} 19. Bb6 {[%clk 0:01:16.3]} 19...
Rxd1+ {[%clk 0:01:23.2]} 20. Rxd1 {[%clk 0:01:15.8]} 20... Bxa2 {[%clk 0:01:23]}
21. Qxa2+ {[%clk 0:01:15.7]} 21... Qe6 {[%clk 0:01:22.8]} 22. Qxe6+ {[%clk
0:01:08.6]} 22... Kxe6 {[%clk 0:01:22.6]} 23. Kf1 {[%clk 0:00:58.5]} 23... Nd7
{[%clk 0:01:20.5]} 24. Be3 {[%clk 0:00:56.1]} 24... bxa4 {[%clk 0:01:11.9]} 25.
Ra1 {[%clk 0:00:55.5]} 25... c5 {[%clk 0:01:02.7]} 26. Rxa4 {[%clk 0:00:50.5]}
26... cxb4 {[%clk 0:01:00.7]} 27. cxb4 {[%clk 0:00:50.5]} 27... Kd6 {[%clk
0:00:50.9]} 28. b5 {[%clk 0:00:33.4]} 28... a5 {[%clk 0:00:51.1]} 29. Nd2 {[%clk
0:00:32.9]} 29... Kc7 {[%clk 0:00:37.9]} 30. Nc4 {[%clk 0:00:31.9]} 30... Bb4
{[%clk 0:00:37.6]} 31. Ke2 {[%clk 0:00:23]} 31... Rb8 {[%clk 0:00:33.7]} 32. b6+
{[%clk 0:00:22]} 32... Kc6 {[%clk 0:00:33.9]} 33. Nxa5+ {[%clk 0:00:19.9]} 33...
Bxa5 {[%clk 0:00:33.5]} 34. Rxa5 {[%clk 0:00:20.1]} 34... Nxb6 {[%clk
0:00:34.2]} 35. Ra7 {[%clk 0:00:18]} 35... Nd7 {[%clk 0:00:30.6]} 36. Kf3 {[%clk
0:00:16.6]} 36... Kd6 {[%clk 0:00:28.7]} 37. Kg4 {[%clk 0:00:16.5]} 37... Ke6
{[%clk 0:00:27.6]} 38. h4 {[%clk 0:00:16.5]} 38... Rb4 {[%clk 0:00:22.6]} 39.
Ra6+ {[%clk 0:00:15.5]} 39... Kf7 {[%clk 0:00:20.8]} 40. f3 {[%clk 0:00:14.5]}
40... g6 {[%clk 0:00:20.6]} 41. h5 {[%clk 0:00:11.5]} 41... f5+ {[%clk
0:00:20.4]} 42. Kg5 {[%clk 0:00:11.5]} 42... fxe4 {[%clk 0:00:19.8]} 43. Ra7
{[%clk 0:00:09.7]} 43... Ke6 {[%clk 0:00:18.6]} 44. Ra6+ {[%clk 0:00:07.5]}
44... Kf7 {[%clk 0:00:17.5]} 45. Ra7 {[%clk 0:00:06.8]} 45... Ke6 {[%clk
0:00:17.1]} 46. Ra6+ {[%clk 0:00:07.1]} 46... Kf7 {[%clk 0:00:17.3]} 1/2-1/2

[Event "*** Titled Tuesday Blitz"]
[Site "Chess.com"]
[Date "2020.11.24"]
[Round "8"]
[White "Nemsko"]
[Black "DonPreuss"]
[Result "1-0"]
[WhiteElo "2358"]
[BlackElo "2239"]
[TimeControl "180+1"]
[EndTime "11:46:30 PST"]
[Termination "Nemsko won by checkmate"]

1. e4 {[%clk 0:03:00.9]} 1... e5 {[%clk 0:02:59.5]} 2. Nf3 {[%clk 0:03:00.1]}
2... d5 {[%clk 0:02:59.9]} 3. exd5 {[%clk 0:02:53.6]} 3... e4 {[%clk 0:02:59.6]}
4. Qe2 {[%clk 0:02:50.7]} 4... Nf6 {[%clk 0:02:59.6]} 5. d3 {[%clk 0:02:47.4]}
5... Qxd5 {[%clk 0:02:59.2]} 6. Nc3 {[%clk 0:02:47.5]} 6... Bb4 {[%clk
0:02:59.1]} 7. Bd2 {[%clk 0:02:44.3]} 7... Bxc3 {[%clk 0:02:59.1]} 8. Bxc3
{[%clk 0:02:43.7]} 8... O-O {[%clk 0:02:59.6]} 9. Bxf6 {[%clk 0:02:39.1]} 9...
exf3 {[%clk 0:02:59.5]} 10. Qxf3 {[%clk 0:02:13.9]} 10... Qxf3 {[%clk
0:02:58.7]} 11. gxf3 {[%clk 0:02:14.8]} 11... gxf6 {[%clk 0:02:58.8]} 12. Rg1+
{[%clk 0:02:14.6]} 12... Kh8 {[%clk 0:02:58.3]} 13. O-O-O {[%clk 0:02:15.5]}
13... Nc6 {[%clk 0:02:56.3]} 14. d4 {[%clk 0:02:15.6]} 14... Bf5 {[%clk
0:02:54.9]} 15. c3 {[%clk 0:02:15.9]} 15... Rae8 {[%clk 0:02:50.9]} 16. Bc4
{[%clk 0:02:16.1]} 16... Bg6 {[%clk 0:02:40]} 17. Rde1 {[%clk 0:02:15.3]} 17...
Rxe1+ {[%clk 0:02:33]} 18. Rxe1 {[%clk 0:02:16.2]} 18... Kg7 {[%clk 0:02:33.1]}
19. f4 {[%clk 0:02:14.5]} 19... Rd8 {[%clk 0:02:31.2]} 20. Rg1 {[%clk 0:02:14]}
20... f5 {[%clk 0:02:27.3]} 21. h4 {[%clk 0:02:13.7]} 21... h5 {[%clk
0:02:24.2]} 22. Re1 {[%clk 0:02:11.6]} 22... Kf8 {[%clk 0:02:13.4]} 23. Bb5
{[%clk 0:02:05.9]} 23... Re8 {[%clk 0:02:11.9]} 24. Rxe8+ {[%clk 0:01:58.6]}
24... Kxe8 {[%clk 0:02:10.7]} 25. d5 {[%clk 0:01:59.3]} 25... Kd7 {[%clk
0:02:07.2]} 26. dxc6+ {[%clk 0:01:59.5]} 26... bxc6 {[%clk 0:02:07.8]} 27. Bc4
{[%clk 0:01:57.4]} 27... Kd6 {[%clk 0:02:07.1]} 28. Kd2 {[%clk 0:01:57.6]} 28...
f6 {[%clk 0:02:05.9]} 29. Ke3 {[%clk 0:01:52.9]} 29... a5 {[%clk 0:01:48.2]} 30.
a3 {[%clk 0:01:43]} 30... c5 {[%clk 0:01:41.3]} 31. Kd3 {[%clk 0:01:38.2]} 31...
Be8 {[%clk 0:01:40.1]} 32. Bg8 {[%clk 0:01:34.5]} 32... Bb5+ {[%clk 0:01:32.1]}
33. c4 {[%clk 0:01:25.7]} 33... Bc6 {[%clk 0:01:30.3]} 34. Ke3 {[%clk
0:01:21.9]} 34... Be8 {[%clk 0:01:27.1]} 35. Kd3 {[%clk 0:01:15.8]} 35... c6
{[%clk 0:01:10.6]} 36. Kc3 {[%clk 0:01:11.3]} 36... Ke7 {[%clk 0:01:04.3]} 37.
Kb3 {[%clk 0:01:08.3]} 37... Bd7 {[%clk 0:01:02]} 38. Ka4 {[%clk 0:00:50.3]}
38... Kf8 {[%clk 0:01:02.2]} 39. Kxa5 {[%clk 0:00:49.1]} 39... Kxg8 {[%clk
0:01:01.5]} 40. Kb6 {[%clk 0:00:49.6]} 40... Kf7 {[%clk 0:00:48.6]} 41. Kc7
{[%clk 0:00:31.6]} 41... Ke7 {[%clk 0:00:32]} 42. a4 {[%clk 0:00:31.2]} 42...
Be6 {[%clk 0:00:32.1]} 43. b3 {[%clk 0:00:30.3]} 43... Bd5 {[%clk 0:00:26.5]}
44. a5 {[%clk 0:00:27.3]} 44... Be4 {[%clk 0:00:25.8]} 45. a6 {[%clk 0:00:27.4]}
45... Bc2 {[%clk 0:00:26.2]} 46. a7 {[%clk 0:00:27.7]} 46... Bxb3 {[%clk
0:00:26.7]} 47. a8=Q {[%clk 0:00:28.1]} 47... Bxc4 {[%clk 0:00:27.4]} 48. Qxc6
{[%clk 0:00:28.1]} 48... Be6 {[%clk 0:00:26.6]} 49. Qxc5+ {[%clk 0:00:27.9]}
49... Kf7 {[%clk 0:00:26.6]} 50. Qd6 {[%clk 0:00:27.5]} 50... Ba2 {[%clk
0:00:24.1]} 51. Kd8 {[%clk 0:00:27.8]} 51... Kg6 {[%clk 0:00:23.4]} 52. Qf8
{[%clk 0:00:25.9]} 52... Bf7 {[%clk 0:00:18.7]} 53. Ke7 {[%clk 0:00:24.1]} 53...
Ba2 {[%clk 0:00:06.8]} 54. Qxf6+ {[%clk 0:00:23.9]} 54... Kh7 {[%clk 0:00:07]}
55. Kf8 {[%clk 0:00:23.1]} 55... Bf7 {[%clk 0:00:02]} 56. Qg7# {[%clk 0:00:24]}
1-0

[Event "*** Titled Tuesday Blitz"]
[Site "Chess.com"]
[Date "2020.11.24"]
[Round "8"]
[White "chessdjw"]
[Black "KononenkoD"]
[Result "1-0"]
[WhiteElo "2656"]
[BlackElo "2482"]
[TimeControl "180+1"]
[EndTime "11:46:31 PST"]
[Termination "chessdjw won on time"]

1. d4 {[%clk 0:03:00.9]} 1... Nf6 {[%clk 0:02:57.5]} 2. c4 {[%clk 0:02:58.8]}
2... c5 {[%clk 0:02:57.7]} 3. Nf3 {[%clk 0:02:49.3]} 3... cxd4 {[%clk
0:02:57.7]} 4. Nxd4 {[%clk 0:02:49.3]} 4... g6 {[%clk 0:02:56.8]} 5. Nc3 {[%clk
0:02:45.4]} 5... d5 {[%clk 0:02:57]} 6. cxd5 {[%clk 0:02:44.9]} 6... Nxd5 {[%clk
0:02:57.3]} 7. Ndb5 {[%clk 0:02:45.6]} 7... Nxc3 {[%clk 0:02:55]} 8. Qxd8+
{[%clk 0:02:46.5]} 8... Kxd8 {[%clk 0:02:54.8]} 9. Nxc3 {[%clk 0:02:47.4]} 9...
Bg7 {[%clk 0:02:51.3]} 10. Bd2 {[%clk 0:02:48.1]} 10... e6 {[%clk 0:02:43.7]}
11. g3 {[%clk 0:02:47.9]} 11... Bd7 {[%clk 0:02:43.5]} 12. O-O-O {[%clk
0:02:46.4]} 12... Ke7 {[%clk 0:02:35.7]} 13. Bg5+ {[%clk 0:02:31.1]} 13... f6
{[%clk 0:02:24.9]} 14. Bf4 {[%clk 0:02:31.1]} 14... Bc6 {[%clk 0:02:16.7]} 15.
Bd6+ {[%clk 0:02:28.2]} 15... Kf7 {[%clk 0:02:14.4]} 16. e4 {[%clk 0:02:26.8]}
16... Nd7 {[%clk 0:02:13.3]} 17. Bc4 {[%clk 0:02:26]} 17... Rac8 {[%clk
0:01:51.6]} 18. Rhe1 {[%clk 0:02:14.5]} 18... Ba4 {[%clk 0:01:38.2]} 19. Rd4
{[%clk 0:01:58.2]} 19... Nb6 {[%clk 0:00:57.3]} 20. Bf1 {[%clk 0:01:41.8]} 20...
Rhd8 {[%clk 0:00:45.8]} 21. Kb1 {[%clk 0:01:22.6]} 21... f5 {[%clk 0:00:38.4]}
22. e5 {[%clk 0:01:13.2]} 22... Bc6 {[%clk 0:00:36.4]} 23. f4 {[%clk 0:01:11.9]}
23... Nd5 {[%clk 0:00:31.1]} 24. Nxd5 {[%clk 0:01:10.7]} 24... Rxd6 {[%clk
0:00:17.9]} 25. exd6 {[%clk 0:01:00.5]} 25... Bxd4 {[%clk 0:00:16.6]} 26. Ne7
{[%clk 0:01:00.5]} 26... Rd8 {[%clk 0:00:12.2]} 27. Nxc6 {[%clk 0:00:55.4]}
27... bxc6 {[%clk 0:00:13.1]} 28. Bc4 {[%clk 0:00:55]} 28... Rxd6 {[%clk
0:00:13.2]} 29. Kc2 {[%clk 0:00:55.4]} 29... Kf6 {[%clk 0:00:12.6]} 30. Re2
{[%clk 0:00:55.2]} 30... e5 {[%clk 0:00:12.7]} 31. fxe5+ {[%clk 0:00:54.5]}
31... Bxe5 {[%clk 0:00:13.1]} 32. Bg8 {[%clk 0:00:54.4]} 32... h6 {[%clk
0:00:12.8]} 33. Bc4 {[%clk 0:00:51.5]} 33... g5 {[%clk 0:00:12.9]} 34. Bd3
{[%clk 0:00:52]} 34... Rd4 {[%clk 0:00:11.1]} 35. Rf2 {[%clk 0:00:51.9]} 35...
f4 {[%clk 0:00:10.6]} 36. gxf4 {[%clk 0:00:52.3]} 36... gxf4 {[%clk 0:00:09.4]}
37. h3 {[%clk 0:00:48.3]} 37... c5 {[%clk 0:00:08]} 38. b3 {[%clk 0:00:47.7]}
38... Kg5 {[%clk 0:00:06]} 39. Bc4 {[%clk 0:00:25.6]} 39... Kh4 {[%clk
0:00:05.7]} 40. Bf1 {[%clk 0:00:22.3]} 40... Kg3 {[%clk 0:00:03.7]} 41. Rg2+
{[%clk 0:00:22.5]} 41... Kf3 {[%clk 0:00:03.8]} 42. Rg6 {[%clk 0:00:19.9]} 42...
Kf2 {[%clk 0:00:02.9]} 43. Bd3 {[%clk 0:00:19.9]} 43... f3 {[%clk 0:00:01.9]}
44. Rxh6 {[%clk 0:00:19.5]} 44... Bf4 {[%clk 0:00:02.2]} 45. Rf6 {[%clk
0:00:19.2]} 45... Ke3 {[%clk 0:00:01.6]} 46. Re6+ {[%clk 0:00:18.3]} 46... Kf2
{[%clk 0:00:02]} 47. h4 {[%clk 0:00:18.8]} 47... Kg2 {[%clk 0:00:01.1]} 48. Be4
{[%clk 0:00:17.2]} 1-0

[Event "*** Titled Tuesday Blitz"]
[Site "Chess.com"]
[Date "2020.11.24"]
[Round "8"]
[White "Chessalary"]
[Black "gumimis"]
[Result "1-0"]
[WhiteElo "2424"]
[BlackElo "2296"]
[TimeControl "180+1"]
[EndTime "11:46:31 PST"]
[Termination "Chessalary won on time"]

1. e4 {[%clk 0:03:00.7]} 1... c5 {[%clk 0:02:57]} 2. Nf3 {[%clk 0:03:01.1]} 2...
d6 {[%clk 0:02:57.2]} 3. d4 {[%clk 0:03:01.5]} 3... cxd4 {[%clk 0:02:58.1]} 4.
Nxd4 {[%clk 0:03:02.4]} 4... Nf6 {[%clk 0:02:58.3]} 5. Nc3 {[%clk 0:03:03]} 5...
a6 {[%clk 0:02:58]} 6. Bc4 {[%clk 0:03:02.9]} 6... e6 {[%clk 0:02:56.3]} 7. Bb3
{[%clk 0:03:03.4]} 7... Nbd7 {[%clk 0:02:53.1]} 8. Bg5 {[%clk 0:03:02.4]} 8...
Nc5 {[%clk 0:02:51.6]} 9. O-O {[%clk 0:03:02.1]} 9... Be7 {[%clk 0:02:47.9]} 10.
Qe2 {[%clk 0:03:01.8]} 10... O-O {[%clk 0:02:47.5]} 11. f4 {[%clk 0:02:58.2]}
11... Nfd7 {[%clk 0:02:31.8]} 12. Bxe7 {[%clk 0:02:55.1]} 12... Qxe7 {[%clk
0:02:32.7]} 13. f5 {[%clk 0:02:50.8]} 13... Ne5 {[%clk 0:02:25.9]} 14. fxe6
{[%clk 0:02:44.8]} 14... Bxe6 {[%clk 0:02:20.6]} 15. Nd5 {[%clk 0:02:39.8]}
15... Bxd5 {[%clk 0:02:20]} 16. Bxd5 {[%clk 0:02:40.7]} 16... Rae8 {[%clk
0:02:11.2]} 17. Nf5 {[%clk 0:02:37.2]} 17... Qd7 {[%clk 0:02:07.2]} 18. Qh5
{[%clk 0:02:31.5]} 18... g6 {[%clk 0:01:57.3]} 19. Nh6+ {[%clk 0:02:29.5]} 19...
Kg7 {[%clk 0:01:57.2]} 20. Qh4 {[%clk 0:02:28.1]} 20... f6 {[%clk 0:01:50]} 21.
Rf2 {[%clk 0:02:14.9]} 21... Ne6 {[%clk 0:01:19.2]} 22. Ng4 {[%clk 0:01:43.7]}
22... Nxg4 {[%clk 0:01:15.2]} 23. Qxg4 {[%clk 0:01:44.6]} 23... b6 {[%clk
0:01:11.4]} 24. Raf1 {[%clk 0:01:39.5]} 24... Nc5 {[%clk 0:01:08.7]} 25. Qxd7+
{[%clk 0:01:39]} 25... Nxd7 {[%clk 0:01:09.6]} 26. Bc6 {[%clk 0:01:36.1]} 26...
Re7 {[%clk 0:01:08.9]} 27. Rd2 {[%clk 0:01:32.5]} 27... Ne5 {[%clk 0:00:29.6]}
28. Rxd6 {[%clk 0:01:31.8]} 28... Nxc6 {[%clk 0:00:25.2]} 29. Rxc6 {[%clk
0:01:32.7]} 29... Rxe4 {[%clk 0:00:25.6]} 30. Rxb6 {[%clk 0:01:32.4]} 30... Re2
{[%clk 0:00:25.4]} 31. Rxa6 {[%clk 0:01:31.4]} 31... Rxc2 {[%clk 0:00:24.9]} 32.
Rb6 {[%clk 0:01:31]} 32... f5 {[%clk 0:00:20.2]} 33. a4 {[%clk 0:01:30.1]} 33...
Rd8 {[%clk 0:00:19.3]} 34. Kh1 {[%clk 0:01:21.2]} 34... Rdd2 {[%clk 0:00:17.1]}
35. Rg1 {[%clk 0:01:19.4]} 35... Rxb2 {[%clk 0:00:16.1]} 36. Rxb2 {[%clk
0:01:18.2]} 36... Rxb2 {[%clk 0:00:17]} 37. Ra1 {[%clk 0:01:18.2]} 37... Rb6
{[%clk 0:00:17.5]} 38. Kg1 {[%clk 0:01:17.8]} 38... Kf6 {[%clk 0:00:17.5]} 39.
Kf2 {[%clk 0:01:18.3]} 39... Ke5 {[%clk 0:00:17.8]} 40. Kg3 {[%clk 0:01:18.3]}
40... Ra6 {[%clk 0:00:15.8]} 41. Kf3 {[%clk 0:01:16.5]} 41... Kd5 {[%clk
0:00:14.9]} 42. Kf4 {[%clk 0:01:16.2]} 42... h6 {[%clk 0:00:14.7]} 43. h4 {[%clk
0:01:16.2]} 43... Ra5 {[%clk 0:00:11.8]} 44. h5 {[%clk 0:01:13]} 44... gxh5
{[%clk 0:00:10.7]} 45. Kxf5 {[%clk 0:01:13.4]} 45... Kd4+ {[%clk 0:00:11.1]} 46.
Kg6 {[%clk 0:01:12.2]} 46... Ke3 {[%clk 0:00:10.9]} 47. Ra2 {[%clk 0:01:03.4]}
47... Kf4 {[%clk 0:00:10]} 48. Kxh6 {[%clk 0:01:02.6]} 48... Kg3 {[%clk
0:00:10.2]} 49. Kg6 {[%clk 0:01:00]} 49... h4 {[%clk 0:00:10.3]} 50. Kf6 {[%clk
0:01:00.1]} 50... h3 {[%clk 0:00:10.6]} 51. gxh3 {[%clk 0:00:59.3]} 51... Kxh3
{[%clk 0:00:11.5]} 52. Ke6 {[%clk 0:01:00]} 52... Kg4 {[%clk 0:00:11.9]} 53. Kd6
{[%clk 0:01:00.6]} 53... Kf5 {[%clk 0:00:12.2]} 54. Kc6 {[%clk 0:01:01.2]} 54...
Ke6 {[%clk 0:00:12.6]} 55. Kb6 {[%clk 0:01:01.8]} 55... Ra8 {[%clk 0:00:12.2]}
56. a5 {[%clk 0:01:02.5]} 56... Kd7 {[%clk 0:00:11.6]} 57. Kb7 {[%clk
0:01:02.8]} 57... Rh8 {[%clk 0:00:10.6]} 58. a6 {[%clk 0:01:03.3]} 58... Rh1
{[%clk 0:00:10.7]} 59. Rb2 {[%clk 0:01:02.9]} 59... Kd8 {[%clk 0:00:06.8]} 60.
a7 {[%clk 0:01:02.7]} 60... Rh7+ {[%clk 0:00:06.9]} 61. Kb8 {[%clk 0:01:02.7]}
1-0

[Event "*** Titled Tuesday Blitz"]
[Site "Chess.com"]
[Date "2020.11.24"]
[Round "8"]
[White "HackingKid98"]
[Black "ama18"]
[Result "0-1"]
[WhiteElo "2317"]
[BlackElo "2453"]
[TimeControl "180+1"]
[EndTime "11:46:33 PST"]
[Termination "ama18 won on time"]

1. d4 {[%clk 0:03:00.9]} 1... Nf6 {[%clk 0:02:59.7]} 2. c4 {[%clk 0:02:53.2]}
2... e6 {[%clk 0:02:58.3]} 3. g3 {[%clk 0:02:52.2]} 3... c5 {[%clk 0:02:57.6]}
4. d5 {[%clk 0:02:36.9]} 4... exd5 {[%clk 0:02:58.5]} 5. cxd5 {[%clk 0:02:37.7]}
5... g6 {[%clk 0:02:54.7]} 6. Bg2 {[%clk 0:02:38.6]} 6... d6 {[%clk 0:02:54.4]}
7. Nc3 {[%clk 0:02:34.9]} 7... Bg7 {[%clk 0:02:54.5]} 8. Nf3 {[%clk 0:02:33.9]}
8... O-O {[%clk 0:02:54]} 9. O-O {[%clk 0:02:33.2]} 9... a6 {[%clk 0:02:54.5]}
10. a4 {[%clk 0:02:31.9]} 10... Re8 {[%clk 0:02:55.1]} 11. Bf4 {[%clk
0:02:05.9]} 11... Ne4 {[%clk 0:02:53.7]} 12. Rc1 {[%clk 0:02:00.8]} 12... Nxc3
{[%clk 0:02:46.3]} 13. bxc3 {[%clk 0:02:01.7]} 13... b5 {[%clk 0:02:47.2]} 14.
Ng5 {[%clk 0:01:44.3]} 14... Be5 {[%clk 0:02:33.8]} 15. Bxe5 {[%clk 0:01:04.9]}
15... Rxe5 {[%clk 0:02:34.7]} 16. f4 {[%clk 0:01:03.4]} 16... Re8 {[%clk
0:02:25.1]} 17. e4 {[%clk 0:00:36.8]} 17... h6 {[%clk 0:02:24.5]} 18. Nxf7
{[%clk 0:00:35.9]} 18... Kxf7 {[%clk 0:02:23.4]} 19. e5 {[%clk 0:00:36.2]} 19...
Kg7 {[%clk 0:02:14.8]} 20. e6 {[%clk 0:00:20.9]} 20... Qf6 {[%clk 0:02:11.8]}
21. f5 {[%clk 0:00:20.3]} 21... g5 {[%clk 0:02:10.8]} 22. Qh5 {[%clk 0:00:20]}
22... Re7 {[%clk 0:02:07.5]} 23. c4 {[%clk 0:00:19.5]} 23... b4 {[%clk
0:02:05.3]} 24. h4 {[%clk 0:00:14.6]} 24... a5 {[%clk 0:02:05.1]} 25. Kh2 {[%clk
0:00:14.2]} 25... Na6 {[%clk 0:01:56.8]} 26. Rce1 {[%clk 0:00:13.5]} 26... Nc7
{[%clk 0:01:56.1]} 27. Re4 {[%clk 0:00:13.3]} 27... Ba6 {[%clk 0:01:16]} 28.
hxg5 {[%clk 0:00:11.9]} 28... hxg5 {[%clk 0:01:14.9]} 29. Kg1 {[%clk 0:00:09.6]}
29... Rh8 {[%clk 0:01:13.5]} 30. Qe2 {[%clk 0:00:08.2]} 30... Nxd5 {[%clk
0:01:12.4]} 31. Rg4 {[%clk 0:00:06.1]} 31... Nc3 {[%clk 0:01:04.4]} 32. Qe3
{[%clk 0:00:05.4]} 32... Rh5 {[%clk 0:00:51.4]} 33. Bc6 {[%clk 0:00:03]} 33...
d5 {[%clk 0:00:43.8]} 34. Rf2 {[%clk 0:00:02.9]} 34... Bxc4 {[%clk 0:00:41.6]}
35. Rh2 {[%clk 0:00:01.8]} 35... d4 {[%clk 0:00:38.7]} 36. Rxh5 {[%clk
0:00:01.1]} 36... dxe3 {[%clk 0:00:37.8]} 37. Rhxg5+ {[%clk 0:00:01.4]} 37...
Qxg5 {[%clk 0:00:35.7]} 38. Rxg5+ {[%clk 0:00:02.3]} 38... Kf6 {[%clk
0:00:36.1]} 39. Rg4 {[%clk 0:00:03.2]} 39... e2 {[%clk 0:00:33]} 40. Kf2 {[%clk
0:00:02.1]} 40... Kxf5 {[%clk 0:00:33.4]} 41. Rf4+ {[%clk 0:00:01.2]} 41... Kxe6
{[%clk 0:00:33.6]} 42. Rxc4 {[%clk 0:00:01.6]} 42... Kd6 {[%clk 0:00:32.5]} 43.
Bf3 {[%clk 0:00:02.3]} 43... e1=Q+ {[%clk 0:00:32.1]} 44. Kg2 {[%clk 0:00:02.3]}
44... Re2+ {[%clk 0:00:32.9]} 45. Kh3 {[%clk 0:00:01.6]} 45... Qf1+ {[%clk
0:00:32.3]} 46. Kg4 {[%clk 0:00:01.6]} 46... Re4+ {[%clk 0:00:31.4]} 0-1